Cogmind - Beta 12 @@@ ROGUE MODE // 2023.04.21 @ 14:17:00 Player: maxwell Result: Destroyed self with Mini Grenade Launcher Performance ------------- Evolutions (0) 0 Regions Visited (2) 400 Robots Destroyed (27) 135 Value Destroyed (583) 583 Prototype IDs (0) 0 Alien Tech Used (0) 0 Bonus (0) 0 TOTAL SCORE: 1118 Bonus ------- None Cogmind --------- Core Integrity 0/250 Matter 115/300 Energy 250/250 System Corruption 7% Temperature Cool (20) Movement Treading (160) Location -10/Mines Parts ------- > --- POWER (1) -------- Ion Engine > --- PROPULSION (2) --- Light Treads Light Treads > --- UTILITY (2) ------ Large Storage Unit > --- WEAPON (2) ------- Small Laser Mini Grenade Launcher > --- INVENTORY (15) --- Light Ion Engine Armored Wheel Armored Wheel Light Armor Plating Light Armor Plating Light Armor Plating Light Armor Plating Light Armor Plating Mini Grenade Launcher Mini Grenade Launcher Mini Grenade Launcher Peak State ------------ > --- POWER ------------ Ion Engine > --- PROPULSION ------- Light Treads Light Treads > --- UTILITY ---------- Large Storage Unit Light Armor Plating > --- WEAPON ----------- Medium Laser Mini Grenade Launcher > --- INVENTORY -------- Light Ion Engine Wheel Wheel Armored Wheel Armored Wheel Armored Wheel Armored Wheel Medium Storage Unit Light Armor Plating Small Laser Mini Grenade Launcher Mini Grenade Launcher Mini Grenade Launcher [Rating: 10] Favorites ----------- Power Ion Engine Engine Ion Engine Propulsion Light Treads Treads Light Treads Leg Aluminum Leg Utility Large Storage Unit Storage Large Storage Unit Protection Light Armor Plating Weapon Medium Laser Energy Gun Medium Laser Ballistic Gun Light Assault Rifle Launcher Mini Grenade Launcher Build | -11 -10 -10 ------- Run | Jun Mat Min Slots Evolved . | . . . Power . | . . . Propulsion . | . . . Utility . | . . . Weapon . | . . . Parts Attached 22 | . 16 6 Power 1 | . 1 . Engine 1 | . 1 . Core . | . . . Reactor . | . . . Propulsion 5 | . 4 1 Treads 5 | . 4 1 Leg . | . . . Wheel . | . . . Hover . | . . . Flight . | . . . Utility 3 | . 2 1 Device . | . . . Storage 1 | . 1 . Processor . | . . . Hackware . | . . . Protection 2 | . 1 1 Artifact . | . . . Weapon 13 | . 9 4 Energy Gun 3 | . 2 1 Energy Cannon . | . . . Ballistic Gun 4 | . 3 1 Ballistic Cannon . | . . . Launcher 6 | . 4 2 Special Weapon . | . . . Impact Weapon . | . . . Slashing Weapon . | . . . Piercing Weapon . | . . . Special Melee Weapon . | . . . Unidentified Prototypes . | . . . Parts Lost 7 | . 2 5 Power 1 | . 1 . Propulsion 1 | . . 1 Utility 2 | . . 2 Weapon 3 | . 1 2 Highest Loss Streak 3 | . 1 3 To Critical Strikes . | . . . Average Slot Usage (%) 95 | . 95 100 Engine 13 | . 13 14 Treads 27 | . 27 28 Storage 14 | . 14 14 Protection 10 | . 9 14 Energy Gun 20 | . 21 14 Ballistic Gun 4 | . 2 14 Launcher 3 | . 4 . Naked Turns . | . . . Heaviest Build 32 | 12 32 31 Greatest Support 40 | 20 40 40 Greatest Overweight (x) 1 | . 1 . Average Overweight (x) . | . . . Largest Inventory Capacity 15 | . 15 15 Average Capacity 14 | . 14 15 Most Carried 15 | . 15 15 Average Carried 12 | . 12 13 Final Capacity 15 | 8 15 15 Final Carried 15 | 6 15 11 Class Distribution -------------------- 100% | Mutant Dominant Class ---------------- Mutant | -10/Materials Mutant | -10/Mines Resources | -11 -10 -10 ----------- Run | Jun Mat Min Matter Collected 509 | 195 296 18 Remotely . | . . . Salvage Created 656 | . 587 69 Parts 37 | . 34 3 Haulers Intercepted 2 | . 2 . Recyclers Shooed . | . . . Parts Field Recycled . | . . . Retrieved Matter . | . . . Parts Self-Destructed . | . . . Prevented . | . . . Kills | -11 -10 -10 ------- Run | Jun Mat Min Combat Hostiles Destroyed 21 | . 16 5 Guns 12 | . 10 2 AOE 8 | . 5 3 Classes Destroyed 8 | . 6 2 Worker 1 | . . 1 Builder 2 | . 2 . Hauler 2 | . 2 . Recycler 1 | . 1 . Watcher 3 | . 3 . Swarmer 6 | . 6 . Grunt 12 | . 10 2 Assembled 3 | . . 3 Best Kill Streak 5 | . 5 3 Combat Bots Only 4 | . 4 3 Max Kills in Single Turn 2 | . 2 1 Gunslinging . | . . . Exploded 2 | . 2 1 Melee . | . . . Uniques/NPCs Destroyed . | . . . Combat | -11 -10 -10 -------- Run | Jun Mat Min Damage Taken 1359 | . 636 723 Core 254 | . 129 125 Absorbed by Shields . | . . . Core Remaining (%) 100 | 100 . . Volleys Fired 108 | . 85 23 Largest 2 | . 2 2 Hottest 100 | . 100 70 Shots Fired 177 | . 138 39 Gun 156 | . 123 33 Cannon . | . . . Launcher 21 | . 15 6 Special . | . . . Kinetic 32 | . 15 17 Thermal 124 | . 108 16 Explosive 21 | . 15 6 Electromagnetic . | . . . Robot Hit Streak 8 | . 8 6 Robot Miss Streak 3 | . 3 2 Penetration Max . | . . . Secondary Targets 2 | . 1 1 Max Gunslinging Chain 1 | . 1 1 Shots Hit Robots 108 | . 80 28 Core Hits 57 | . 40 17 Critical Kills . | . . . Critical Parts Destroyed . | . . . Critical Strikes 4 | . 4 . Burn 4 | . 4 . Melee Attacks . | . . . Impact . | . . . Slashing . | . . . Piercing . | . . . Sneak Attacks . | . . . Combat Hostiles . | . . . Follow-up Attacks . | . . . Damage Inflicted 2646 | . 1915 731 Guns 1232 | . 987 245 Cannons . | . . . Explosions 1408 | . 922 486 Melee . | . . . Ramming 6 | . 6 . Kinetic 165 | . 83 82 Thermal 1067 | . 904 163 Explosive 1408 | . 922 486 Electromagnetic . | . . . Impact . | . . . Slashing . | . . . Piercing . | . . . Highest Corruption 7 | . . 7 Average Corruption 6 | . . 6 Corruption Purged . | . . . Corruption Blocked . | . . . Overload Shots . | . . . Overflow Damage 23 | . 14 9 Projectiles . | . . . Explosions 23 | . 14 9 Melee . | . . . Knockbacks . | . . . Impact . | . . . Kinetic . | . . . Secondary . | . . . Self-Inflicted Damage 182 | . . 182 Shots 5 | . . 5 Rammed 5 | . 4 1 Targets Rammed 5 | . 4 1 Kicked . | . . . Crushed . | . . . Highest Temperature 450 | . 450 262 Average Temperature 157 | . 172 99 Received Heat Transfer 426 | . 240 186 Effects 11 | . 11 . Shutdowns 2 | . 2 . Energy Bleed 2 | . 2 . Interference 4 | . 4 . Matter Decay 2 | . 2 . Short Circuit 1 | . 1 . Siege Activations . | . . . Robots Corrupted . | . . . Combat Hostiles . | . . . Parts Fried . | . . . Impact Corruptions . | . . . Robots Melted 1 | . 1 . Combat Hostiles 1 | . 1 . Parts Melted 6 | . 6 . Heat Transferred 3286 | . 2864 422 Parts Sabotaged . | . . . Parts Stolen . | . . . Parts Stripped . | . . . Power Chain Reactions . | . . . Missiles Intercepted . | . . . Alert | -11 -10 -10 ------- Run | Jun Mat Min Peak Influence 268 | . 268 128 Initial 71 | . . 71 Average 93 | . 91 108 Maximum Alert Level 1 | . 1 . Low Security (%) 92 | . 91 100 Level 1 7 | . 8 . Level 2 . | . . . Level 3 . | . . . Level 4 . | . . . Level 5 . | . . . High Security . | . . . Max Security . | . . . Squads Dispatched 5 | . 5 . Investigation 3 | . 3 . Extermination . | . . . Reinforcement 2 | . 2 . Assault . | . . . Garrison . | . . . Intercept . | . . . Searches Triggered . | . . . Construction Impeded . | . . . Haulers Reinforced . | . . . Active Scanning Responses . | . . . Cargo Convoy Interrupts . | . . . Stealth | -11 -10 -10 --------- Run | Jun Mat Min Distress Signals . | . . . Communications Jammed . | . . . Distress Signals . | . . . Times Spotted 44 | . 34 10 Peak Tracking Total 5 | . 5 5 Tactical Retreats 2 | . 2 . Traps | -11 -10 -10 ------- Run | Jun Mat Min Traps Triggered 1 | . 1 . Indirectly . | . . . Trap Hack Attempts . | . . . Triggered . | . . . Disarmed . | . . . Reprogrammed . | . . . Reused . | . . . Traps Extracted . | . . . Installed . | . . . Triggered . | . . . Machines | -11 -10 -10 ---------- Run | Jun Mat Min Machines Disabled 3 | . 3 . Max in Single Turn 2 | . 2 . Machines Repaired . | . . . Machines Sabotaged . | . . . Overloaded Fab Kills . | . . . Hacking | -11 -10 -10 --------- Run | Jun Mat Min Machines Accessed 4 | . 4 . Terminals 2 | . 2 . Fabricators . | . . . Repair Stations . | . . . Recycling Units 2 | . 2 . Scanalyzers . | . . . Garrison Access . | . . . Total Hacks 6 | . 6 . Successful 3 | . 3 . Failed 2 | . 2 . Catastrophic . | . . . Database Lockouts 1 | . 1 . Manual 6 | . 6 . Terminals 3 | . 3 . Fabricators . | . . . Repair Stations . | . . . Recycling Units 3 | . 3 . Scanalyzers . | . . . Garrison Access . | . . . Terminal Hacks 1 | . 1 . Robot Analysis 1 | . 1 . Fabricator Hacks . | . . . Repair Station Hacks . | . . . Recycling Unit Hacks . | . . . Scanalyzer . | . . . Garrison Access Hacks . | . . . Unauthorized Hacks 2 | . 2 . Terminals . | . . . Fabricators . | . . . Repair Stations . | . . . Recycling Units 2 | . 2 . Tunnel 2 | . 2 . Scanalyzers . | . . . Garrison Access . | . . . Data Cores Recovered . | . . . Used . | . . . Hacking Detections 2 | . 2 . Full Trace Events . | . . . Feedback Events . | . . . Feedback Blocked . | . . . Robot Schematics Acquired . | . . . Robots Built . | . . . Authchips . | . . . Time . | . . . Total Robot Build Rating . | . . . Part Schematics Acquired . | . . . Parts Built . | . . . Authchips . | . . . Time . | . . . Total Part Build Rating . | . . . Parts Repaired . | . . . Time . | . . . Parts Recycled . | . . . Recycled Matter . | . . . Retrieved Matter . | . . . Retrieved Components . | . . . Parts Scanalyzed . | . . . Part Schematics Acquired . | . . . Parts Damaged . | . . . Bothacking | -11 -10 -10 ------------ Run | Jun Mat Min Used RIF Installer . | . . . Robots Hacked . | . . . Non-combat . | . . . Combat . | . . . Robot Hacks Applied . | . . . Relay Couplers Released . | . . . Fabnet Peak Effective % . | . . . Robots Rewired . | . . . Allies Hacked . | . . . Hacks Repelled . | . . . Allies | -11 -10 -10 -------- Run | Jun Mat Min Total Allies . | . . . Largest Group . | . . . Highest-Rated Group . | . . . Highest-Rated Ally . | . . . Total Orders . | . . . Ally Attacks . | . . . Total Damage . | . . . Kills . | . . . Allies Corrupted . | . . . Allies Melted . | . . . Intel | -11 -10 -10 ------- Run | Jun Mat Min Robot Analysis Total 1 | . 1 . Derelict Logs Recovered . | . . . Drone Launches . | . . . Drone Recoveries . | . . . Exploration | -11 -10 -10 ------------- Run | Jun Mat Min Turns Passed 1934 | . 1651 283 Spaces Moved 904 | 1 785 118 Core . | . . . Treads 871 | . 753 118 Legs 33 | 1 32 . Wheels . | . . . Hover . | . . . Flight . | . . . Fastest Speed 120 | 120 120 160 Average Speed 170 | 120 172 160 Slowest Speed 240 | 120 240 160 Overloaded Moves . | . . . Propulsion Burnouts . | . . . Robots Hopped . | . . . Cave-ins Triggered . | . . . Exploration Rate (%) 41 | 2 97 26 Regions Visited 2 Branch Regions 1 Pre-discovered Areas 2 | . 2 . Known Exits Taken . | . . . Unknown Exits Taken 2 | 1 1 . Scrap Searched 1 | . . 1 Spaces Dug 31 | . 31 . Terrain Destroyed 146 | . 97 49 Melee . | . . . Projectile . | . . . AOE 146 | . 97 49 Terrain Rammed . | . . . Walls Destroyed . | . . . Machines Disabled . | . . . Actions | -11 -10 -10 --------- Run | Jun Mat Min Total 1120 | . 943 177 Wait 53 | . 24 29 Move 902 | . 784 118 Hop . | . . . Pick Up 20 | . 20 . Fast Attach 2 | . 2 . Attach 10 | . 6 4 Detach . | . . . Swap 10 | . 8 2 Drop 10 | . 10 . Fire 108 | . 85 23 Melee . | . . . Ram . | . . . Kick . | . . . Crush 5 | . 4 1 Escape Stasis . | . . . Rewire . | . . . Trap . | . . . Miscellaneous . | . . . Route ------- -11/Junkyard -10/Materials (discovered 4 exits: [*Mat x3] / [*Min]) -10/Mines (discovered 2 exits: [*Mat x2]) History --------- Turn | Location | Event 1 | -11/Junkyard | Discovered new exit (range 0) 1 | -11/Junkyard | Entered Materials 255 | -10/Materials | Discovered new exit (range 15) 307 | -10/Materials | Build established: Mutant 447 | -10/Materials | Discovered new exit (range 15) 751 | -10/Materials | Discovered new exit (range 16) 849 | -10/Materials | Central database locked down 1147 | -10/Materials | Discovered new exit (range 10) 1491 | -10/Materials | Core integrity fell below 50% 1652 | -10/Materials | Entered Mines 1672 | -10/Mines | Discovered new exit (range 12) 1769 | -10/Mines | Met a Derelict bent on vengeance 1841 | -10/Mines | Discovered new exit (range 8) 1869 | -10/Mines | Assembled infested the area 1874 | -10/Mines | Assisted by a Guerilla fighting off Assembled 1935 | -10/Mines | Core integrity fell below 20% 1935 | -10/Mines | Destroyed self with Mini Grenade Launcher Last Messages --------------- 01778_ K-01 Serf collects debris. 01780_ U-05 Engineer lays Concrete. 01790_ Slammed into T-07 Excavator. 01841_ EXIT=FOUND 01869_ ALERT: Infestation in the mines, dispatching Demolisher response squad. 01874_ A derelict emerges from the shadows: "You need to get out of here! I've been tracking a group of Assembled to figure out where they're coming from, and they're closing on this area, come on!" 01886_ PA-7VZ(h) exits level. 01918_ as-73906 destroyed. 01918_ Switching to secondary target: as-60433. 01926_ Lgt. Treads destroyed. 01926_ System corrupted by crushing effect (+5). 01930_ Lgt. Assault Rifle destroyed. 01930_ System corrupted by crushing effect (+2). 01931_ Destroyed Asb. Hover Unit. 01931_ as-60433 destroyed. 01933_ as-45720 destroyed. 01935_ Lgt. Armor Plating destroyed. Map ----- +----------------------------------------------------+ | ?????????????????????????????????????????? | | ?????????????????????????????????????????? | | ?????????????????????????????????????????? | | ?????????????????????????????????????????? | | ?????????????????????????????????????????? | | ???????????????????? ?????????????????? | | ???????????????????? ????????????????? | | ???????????????????? ????????????????? | | ???????????????????? ?????????????????? | | ???????????????????? ?????????????????? | | ???????????????????? ?????????????????? | | ???????????????????? ?????????????????? | | ???????????????????? ?????????????????? | | ???????????????????? #?????????????????? | | ????????????????????# ??????????????????? | | ???????????????????## ??????????????????? | | ???????????????????# ??????????????????? | | ???????????????????# ??????????????????? | | ???????????????????# #??????????????????? | | ???????????????????# ##?????????????????? | | ????????????????????# ##????????????????? | | ????????????????###### ##???????????????? | | ????????????????# ##a #???????????????? | | ???????????????## aa #???????????????? | | ??????????????## ##??????????????? | | ??????????????# @a ##?????????????? | | ??????????????## a #?????????????? | | ???????????????# ##????????????? | | ???????????????# # ##???????????? | | ???????????????#### #???????????? | | ???????????????????## #???????????? | | ?????????????????### #???????????? | | ????????????????## < #???????????? | | ????????????????# ##???????????? | | ????????????????# ##????????????? | | ????????????????# ##?????????????? | | ????????????????# ##??????????????? | | ????????????????## ## ###???????????????? | | ????????############?# #####?????????????? | | ????????# #?# #?????????????? | | ????????# """ #?##### #?????????????? | | ????????# """ #?????# #?????????????? | | ????????# """ #?????# #?????????????? | | ????????# #?????# #?????????????? | | ????????# #?????# #?????????????? | | ????????# #?????# #########?????? | | ????????# #?????# #?????? | | ????????######## ##?????######### #?????? | | ???????????????# #??????????????# #?????? | | ???????????????# #??????????????# #?????? | +----------------------------------------------------+ Best States ------------- Heat Dissipation 25 Energy Generation 10 Energy Capacity 250 Matter Stores 300 Matter Capacity 300 Sight Range 16 Terrain Scan Density 10 Armor Coverage 150 Evasion (%) 55 Recoil Reduction 2 Item Schematics ----------------- None Robot Schematics ------------------ None Fabricated ------------ Nothing Alien Tech Used ----------------- None Achievements -------------- None Challenges ------------ None Game ------ Seed ExperimentalMyomerSheargun Manual? 0 Play Time 00:07:28 Cumulative 308.1 hours Start 2023.04.21 @ 14:10:17 End 2023.04.21 @ 14:17:00 Sessions 1 Manual Loads 0 Difficulty Rogue Special Mode None Game No. 453 Rogue 430 Adventurer 4 Explorer 19 Win Type - Total 13 Types 10/0/0/2/1/0/0/0/0 Lore% 71 Gallery% 91 Achievement% 76 Wizard Run 0 Options --------- ASCII 0 Keyboard 1 Movement Numpad Keybinds 0 Fullscreen 2 Font 18/SmallcapsGlow Map View 76x50 Tactical HUD 1 Map Filters NONE Filters NONE Steam 1 RUN: dd792317-fb10-4615-a5c9-fe02d3329e7f